[Event "71st Greek Championship 2022"]
[Site "Athens"]
[Date "2022.12.10"]
[Round "8.1"]
[White "Skembris, Spyridon"]
[Black "Moutousis, Konstantinos"]
[Result "1/2-1/2"]
[ECO "D30"]
[WhiteElo "2381"]
[BlackElo "2392"]
[Annotator "TA"]
[PlyCount "207"]
[EventDate "2022.12.04"]
[EventType "tourn"]
[EventCountry "GRE"]
[SourceTitle "playchess.com"]
[Source "ChessBase"]
[SourceQuality "1"]
[TimeControl "40/5400+30:1800+30"]

{[%evp 24,207,34,22,35,24,37,28,32,7,14,7,16,0,0,0,6,0,0,5,0,0,5,0,0,0,6,2,7,0,0,0,0,0,0,0,0,0,23,0,0,-13,0,0,30,38,43,0,102,102,112,32,55,28,24,27,23,10,10,15,18,8,31,5,47,31,31,31,31,31,31,0,142,140,139,142,144,132,141,140,140,0,117,144,133,108,307,304,284,276,358,357,447,387,640,635,504,440,647,647,585,578,586,435,431,417,760,756,722,712,722,847,1019,908,984,1037,1026,925,873,797,639,716,699,676,603,575,567,464,1584,1314,5093,3706,29978,29979,29976,2611,29981,29978,29982,8,8,8,8,8,8,8,8,8,8,8,8,8,8,8,8,0,8,0,8,8,8,8,8,8,5875,4672,2014,8,8,8,8,8,8,8,8,8,8,8,8,8,8,8,8,8,8,8]} 1. c4 {[%emt 0:00:56]} e6 {[%emt 0:00:23]} 2. Nf3 {[%emt 0:00:35]} d5 {[%emt 0:00:08]} 3. d4 {[%emt 0:00:42]} c5 {[%emt 0:08:44]} 4. cxd5 {[%emt 0:00:53]} exd5 {[%emt 0:00:07]} 5. g3 {[%emt 0:00:07]} Nc6 {[%emt 0:00:14]} 6. Bg2 {[%emt 0:00:09]} c4 {[%emt 0:02:34]} 7. O-O {[%emt 0:00:37]} Bb4 {[%emt 0:00:02]} 8. b3 {[%emt 0:01:27]} cxb3 {[%emt 0:00:30]} 9. Qxb3 {[%emt 0:01:05]} Nge7 {[%emt 0:00:07]} 10. Ba3 {[%emt 0:04:25]} Bxa3 {[%emt 0:03:34]} 11. Nxa3 {[%emt 0:01:36]} O-O {[%emt 0:00:07]} 12. e3 {[%emt 0:01:51]} b6 {[%emt 0:00:17]} 13. Rfc1 {[%emt 0:00:47]} f6 {[%emt 0:36:03]} 14. Nd2 {[%emt 0:04:46]} Be6 {[%emt 0:00:25]} 15. Nb5 {[%emt 0:09:37]} Qd7 {[%emt 0:01:08]} 16. a4 {[%emt 0:02:41]} Rac8 {[%emt 0:02:26]} 17. Qa3 {[%emt 0:03:45]} Rfd8 {[%emt 0:01:58]} 18. Nb3 {[%emt 0:04:15]} a5 {[%emt 0:00:59]} 19. Nd2 {[%emt 0:03:54]} Nb4 {[%emt 0:04:35]} 20. Rxc8 {[%emt 0:06:32]} Rxc8 {[%emt 0:00:37]} 21. Rc1 {[%emt 0:00:11]} Nec6 {[%emt 0:11:33]} 22. h4 {[%emt 0:10:29]} Qe7 {[%emt 0:06:04]} 23. Rc3 {[%emt 0:11:02]} Kf8 {[%emt 0:04:40]} 24. Qb3 {[%emt 0:02:58]} Rd8 {[%emt 0:01:47]} 25. Qb1 {[%emt 0:01:42]} g6 {[%emt 0:00:14]} 26. Qb3 {[%emt 0:06:59]} Kg7 {[%emt 0:00:44]} 27. Kh2 {[%emt 0:03:26]} h6 {[%emt 0:00:49]} 28. Kg1 {[%emt 0:01:11]} g5 {[%emt 0:00:21]} 29. hxg5 {[%emt 0:06:19]} hxg5 {[%emt 0:00:09]} 30. Qb1 {[%emt 0:00:06]} Bf7 {[%emt 0:05:11]} 31. Qd1 {[%emt 0:02:45]} (31. Bh3 {with more complications.} Be6 32. Bf5 Qd7 33. g4) 31... Bg6 {[%emt 0:03:24]} 32. Qb3 {[%emt 0:00:42]} Bf7 {[%emt 0:00:34]} 33. Qd1 {[%emt 0:00:35]} Rd7 {[%emt 0:00:07]} 34. Bh3 {[%emt 0:00:54]} Be6 {[%emt 0:00:13]} 35. Qh5 {[%emt 0:02:24]} Bxh3 {[%emt 0:02:52]} (35... Rd8 $11 36. Bxe6 Qxe6) 36. Qxh3 $16 {[%emt 0:00:03]} Rd8 {[%emt 0:00:11]} 37. Qf5 {[%emt 0:01:40]} (37. g4 $1 $16) 37... Qf7 {[%emt 0:00:21]} 38. Nf3 {[%emt 0:02:18]} Qd7 {[%emt 0:01:19]} 39. Qxd7+ {[%emt 0:00:30]} Rxd7 {[%emt 0:00:12]} 40. Ne1 {[%emt 0:00:00]} Na7 {[%emt 0:00:00]} 41. Nxa7 {[%emt 0:04:30]} Rxa7 {[%emt 0:02:21]} 42. Nc2 {[%emt 0:00:13]} Kf7 {[%emt 0:02:16]} 43. Na3 {[%emt 0:01:40]} Ke7 {[%emt 0:02:23]} 44. Rc8 {[%emt 0:00:49]} (44. Nb5 $5 {[%cal Rb5a7]} Rd7 45. Rc8 $14) 44... Rd7 {[%emt 0:01:07]} 45. Nb5 {[%emt 0:01:11]} Rd8 $1 {[%emt 0:00:38]} 46. Rc7+ {[%emt 0:00:30]} Rd7 $1 {[%emt 0:00:30]} 47. Rc8 {[%emt 0:00:30]} Rb7 {[%emt 0:00:30]} (47... Rd8 $1 $11 {remains equal.} 48. Rc1 Re8) 48. g4 $16 {[%emt 0:00:30]} Kd7 {[%emt 0:00:30]} 49. Rf8 {[%emt 0:14:34]} Ke6 {[%emt 0:12:12]} 50. Re8+ {[%emt 0:01:12]} Kd7 {[%emt 0:00:22]} 51. Rg8 {[%emt 0:00:30]} Ke6 {[%emt 0:00:30]} 52. Re8+ {[%emt 0:00:30]} Kd7 $1 {[%emt 0:00:30]} 53. Rh8 {[%emt 0:00:30]} Ke6 {[%emt 0:00:30]} 54. Kg2 {[%emt 0:00:30]} Nc6 $2 {[%emt 0:00:30]} (54... Nd3 $16 {was called for.}) 55. f4 $1 $18 gxf4 {[%emt 0:07:00]} 56. exf4 {[%emt 0:05:16]} Rg7 {[%emt 0:00:08]} 57. Kf3 {[%emt 0:00:57]} Ne7 {[%emt 0:02:45]} 58. Rb8 {[%emt 0:00:34]} Rh7 $2 {[%emt 0:00:13]} (58... Kd7 59. Rxb6 f5 60. Rd6+ Kc8 61. gxf5 Nxf5) 59. Rxb6+ $18 {[%emt 0:00:25]} Kf7 {[%emt 0:00:09]} 60. Nd6+ {[%emt 0:00:22]} Kf8 {[%emt 0:00:28]} (60... Kg8 $142 61. Kg2 Rg7 62. Rb8+ Kh7) 61. Rb8+ $18 {[%emt 0:02:04]} Kg7 {[%emt 0:00:06]} 62. Rb7 {[%emt 0:00:39]} Kg8 {[%emt 0:01:44]} 63. Rc7 {[%emt 0:01:34]} Rh3+ {[%emt 0:01:22]} 64. Kg2 {[%emt 0:00:32]} Re3 {[%emt 0:00:23]} (64... Rh7 $142 65. Ra7 Ng6 66. Ra8+ Kg7) 65. Kf2 $18 {[%emt 0:01:07]} Re6 {[%emt 0:00:03]} 66. Rd7 {[%emt 0:02:11]} Nc6 {[%emt 0:01:53]} 67. f5 {[%emt 0:01:11]} Re7 {[%emt 0:00:21]} 68. Rxe7 {[%emt 0:00:04]} Nxe7 {[%emt 0:00:03]} 69. Ne8 {[%emt 0:00:01]} Kf7 70. Nc7 $1 {[%emt 0:00:12]} Nc6 {[%emt 0:00:45]} 71. Ke3 {[%emt 0:00:31]} Nb4 {[%emt 0:00:30]} 72. Nb5 {[%emt 0:01:33]} Kg7 {[%emt 0:03:06]} 73. Kf4 $1 {[%emt 0:00:00]} Nd3+ {[%emt 0:00:30] [#]} 74. Kg3 $1 Nb2 {[%emt 0:00:30]} 75. Nc3 {[%emt 0:00:29]} Kh7 {[%emt 0:00:30]} (75... Kf8 $142 76. Kh4 (76. Nxd5 Nxa4 77. Nxf6 Nc3 $16) 76... Kf7) 76. Kh4 {[%emt 0:00:30]} Kh6 {[%emt 0:00:30]} 77. Nxd5 {[%emt 0:00:30]} Nxa4 {[%emt 0:00:30]} 78. Nxf6 {[%emt 0:00:30]} Nc3 {[%emt 0:00:30]} 79. Nd7 {[%emt 0:00:30]} (79. g5+ $142 Kg7 80. d5 Nb5 81. Ng4 Nd6 82. f6+ Kg6 83. Ne5+ Kf5 84. f7 Nxf7 85. Nxf7) 79... a4 {[%emt 0:00:30]} 80. g5+ {[%emt 0:00:30]} Kg7 {[%emt 0:00:30]} 81. Nc5 $2 {[%emt 0:00:30]} (81. f6+ {mates} Kf7 82. Ne5+ Ke8 83. g6 Nd5 84. Kg5 Nc7 85. g7 Ne6+ 86. Kf5) 81... a3 $11 {[%emt 0:00:30]} 82. Nb3 {[%emt 0:00:30]} a2 {[%emt 0:00:34]} 83. Na1 {[%emt 0:00:10]} Kf7 {[%emt 0:01:18]} 84. Kg4 {[%emt 0:01:59]} Ke7 {[%emt 0:00:30]} 85. Kf4 {[%emt 0:00:30]} Kd6 {[%emt 0:00:30]} 86. Ke3 {[%emt 0:00:30]} (86. f6 {with more complications.} Ke6 87. Nc2 Nd5+ 88. Ke4) 86... Nd5+ {[%emt 0:00:30]} (86... Ke7 {is interesting.} 87. f6+ Ke6 88. Nb3 Nb5) 87. Ke4 {[%emt 0:00:30]} Nc3+ {[%emt 0:00:30]} 88. Kd3 {[%emt 0:00:30]} Nd5 {[%emt 0:00:30]} 89. Ke4 {[%emt 0:00:30]} (89. f6 $5 {[%cal Rd3e4]} Ke6 90. Kc4 $11) 89... Nc3+ {[%emt 0:00:30]} 90. Kd3 {[%emt 0:00:30]} Nd5 {[%emt 0:00:30]} 91. f6 {[%emt 0:00:30]} Ke6 {[%emt 0:00:00]} 92. Kc4 {[%emt 0:00:46]} Kd6 {[%emt 0:02:44]} (92... Nf4 {seems wilder.} 93. Nc2 Nh3 94. d5+ Kf7) 93. Kb3 {[%emt 0:00:51]} (93. f7 {keeps more tension.} Nb6+ 94. Kb3 Ke7 95. f8=N) 93... Nf4 $2 {[%emt 0:00:24][%mdl 8192]} (93... Ke6 $11) 94. Kxa2 $18 {[%emt 0:00:21]} Ke6 {[%emt 0:00:18] [#]} 95. Kb3 $2 {[%emt 0:00:12]} (95. Nb3 $1 $18 Kd5 96. Kb2) 95... Kf5 $11 {[%emt 0:00:30]} 96. f7 {[%emt 0:00:30]} (96. Kc4 $5 {[%cal Rf6f7]} Kxg5 97. Nc2 $11 (97. f7 Ng6 $11)) 96... Ng6 {[%emt 0:00:30]} 97. Kc4 {[%emt 0:00:30]} (97. f8=B {simplifies} Nxf8 98. Nc2 Kxg5 99. Ne3) 97... Kxg5 {[%emt 0:00:30]} 98. Kc5 {[%emt 0:00:30]} (98. d5 {feels hotter.} Kf6 99. d6 Kxf7 100. Nc2) 98... Kf6 {[%emt 0:00:30]} 99. Nb3 {[%emt 0:00:30]} Kxf7 {[%emt 0:00:30]} 100. d5 {[%emt 0:00:30]} Ke8 {[%emt 0:00:30]} 101. Nd4 {[%emt 0:00:30]} Ne7 {[%emt 0:00:30]} 102. d6 {[%emt 0:00:30]} (102. Kd6 $5) 102... Nc8 {[%emt 0:00:30]} 103. Kc6 {[%emt 0:00:30]} Nxd6 {[%emt 0:00:30]} 104. Kxd6 {[%emt 0:00:30]} 1/2-1/2

[Event "71st Greek Championship 2022"]
[Site "Athens"]
[Date "2022.12.10"]
[Round "8.2"]
[White "Naoum, Spyridon"]
[Black "Markidis, Konstantinos"]
[Result "1/2-1/2"]
[ECO "D37"]
[WhiteElo "2352"]
[BlackElo "2290"]
[Annotator "TA"]
[PlyCount "125"]
[EventDate "2022.12.04"]
[EventType "tourn"]
[EventCountry "GRE"]
[SourceTitle "playchess.com"]
[Source "ChessBase"]
[SourceQuality "1"]
[TimeControl "40/5400+30:1800+30"]

{[%evp 13,125,0,0,0,3,3,4,0,5,0,0,3,6,8,8,0,0,0,2,-42,-57,-41,-34,-97,-37,-176,-162,-138,-102,-102,-102,-168,-160,-164,-133,-229,-210,-207,-194,-181,-194,-193,-191,-177,-178,-194,-159,-186,-166,-208,-139,-154,-106,-110,-70,-74,-35,-35,-35,-35,-35,-35,-35,-35,-35,-35,-35,-35,-35,-35,-35,-35,-35,-35,-35,-35,-35,-35,-35,-35,-35,-35,0,-35,0,-40,-35,-35,-35,-40,-35,-40,-40,-40,0,-40,0,0,0,0,0,0,0,0,0,0,0,0,0,0,0,0,0,0]} 1. d4 {[%emt 0:00:03]} d5 {[%emt 0:04:21]} 2. c4 {[%emt 0:00:07]} e6 {[%emt 0:00:37]} 3. Nc3 {[%emt 0:00:06]} Be7 {[%emt 0:00:13]} 4. Nf3 {[%emt 0:02:22]} Nf6 {[%emt 0:00:13]} 5. Bf4 {[%emt 0:00:12]} O-O {[%emt 0:00:20]} 6. e3 {[%emt 0:00:03]} Nbd7 {[%emt 0:00:29]} 7. c5 {[%emt 0:00:58]} Nh5 {[%emt 0:01:11]} 8. b4 {[%emt 0:01:54] D37: Queen's Gambit Declined: 5 Bf4.} Nxf4 {[%emt 0:01:03]} 9. exf4 {[%emt 0:00:02]} c6 {[%emt 0:01:49]} 10. Bd3 {[%emt 0:01:03]} b6 {[%emt 0:00:29]} 11. O-O {[%emt 0:02:42]} a5 {[%emt 0:00:09]} 12. a3 {[%emt 0:00:44]} Ba6 {[%emt 0:00:26] Nowadays more popular than 12...Qc7.} 13. Bxa6 {[%emt 0:07:50]} Rxa6 {[%emt 0:00:09]} 14. b5 {[%emt 0:25:54]} cxb5 {[%emt 0:14:02]} 15. c6 {[%emt 0:00:12]} Nb8 {[%emt 0:02:17]} 16. Qe2 {[%emt 0:01:42]} Nxc6 {[%emt 0:04:33]} 17. Qxb5 {[%emt 0:00:32] [#]} Ra8 $146 {[%emt 0:12:48][%mdl 2048] White is under pressure.} ({Predecessor:} 17... Nb8 18. Rfc1 Qd7 19. Ne5 Qxb5 20. Nxb5 Bf6 21. Rc7 Ra8 22. Rb7 Bxe5 23. fxe5 Na6 24. Rxb6 {1-0 (60) Turzo,A (2338)-Anishka,V (2000) Budapest 2022}) 18. Na4 {[%emt 0:19:39]} ({Of course not} 18. Qxc6 Rc8 19. Qb5 Rxc3 $17) (18. f5 $15) 18... Na7 {[%emt 0:02:48]} ({Black should try} 18... Qd6 $17 {White must now prevent ...Na7.} 19. g3 Rab8) 19. Qa6 {[%emt 0:02:20]} (19. Qxb6 $15 Qd7 20. Nc5) 19... b5 {[%emt 0:03:32]} 20. Nc5 {[%emt 0:03:07]} Bxc5 {[%emt 0:02:48]} 21. dxc5 {[%emt 0:00:13][%cal Of4f5]} Qc7 {[%emt 0:08:51][%csl LRc5,LRf4] Prevents f5.} 22. Rfc1 {[%emt 0:16:18]} (22. g3 $17 {is a better defense.}) 22... Qxf4 $19 {[%emt 0:05:37]} 23. Qxa5 {[%emt 0:00:23]} Rfc8 {[%emt 0:00:51]} 24. a4 {[%emt 0:02:14]} (24. c6 $17 {was worth a try.}) 24... bxa4 {[%emt 0:04:07]} 25. c6 {[%emt 0:00:14]} h6 {[%emt 0:06:51]} (25... Rxc6 $2 26. Rxc6 (26. Rxa4 Rxc1+ 27. Ne1 Qxa4 28. Qd2 Qc2 29. Qe3 d4) 26... h6 27. Ra6 $18) 26. Qxa4 {[%emt 0:10:34]} Qxa4 {[%emt 0:02:45]} 27. Rxa4 {[%emt 0:00:00]} Nb5 {[%emt 0:00:59] Prevents Nd4.} (27... Rxc6 $2 28. Rxc6 Rb8 29. Rc1 $18 (29. Rxa7 $2 {gets mated.} Rb1+)) 28. Rxa8 {[%emt 0:00:44]} Rxa8 {[%emt 0:00:06][%mdl 4096] Endgame KRN-KRN} 29. Kf1 {[%emt 0:01:09]} Kf8 {[%emt 0:02:50]} 30. Rb1 {[%emt 0:01:19] [#]} Nd6 {[%emt 0:01:14]} 31. Nd4 {[%emt 0:00:01]} Rc8 {[%emt 0:01:33]} 32. f4 {[%emt 0:00:08]} g5 {[%emt 0:03:04]} (32... Ra8 $142 33. c7 Ke7) 33. g3 $17 {[%emt 0:00:13]} gxf4 {[%emt 0:05:32]} 34. gxf4 {[%emt 0:00:01]} Nf5 {[%emt 0:01:44]} (34... Ra8 {is more complex.} 35. f5 Re8 36. fxe6 fxe6 37. c7 Ke7) 35. Nxf5 {[%emt 0:00:15]} exf5 $15 {[%emt 0:00:07] KR-KR} 36. Rd1 {[%emt 0:00:07]} Rxc6 {[%emt 0:00:41]} 37. Rxd5 {[%emt 0:00:01]} Rc2 {[%emt 0:00:14]} 38. Kg1 {[%emt 0:01:23]} Kg7 {[%emt 0:00:08]} 39. Rxf5 {[%emt 0:00:35]} Rc4 {[%emt 0:01:06]} 40. Kg2 {[%emt 0:00:00]} Kg6 {[%emt 0:00:00]} 41. Ra5 {[%emt 0:00:16]} Rxf4 {[%emt 0:00:15]} 42. Kg3 {[%emt 0:00:05]} Rb4 {[%emt 0:00:11]} 43. Rc5 {[%emt 0:00:16]} Rb3+ {[%emt 0:03:08]} 44. Kf4 {[%emt 0:04:05]} Rh3 {[%emt 0:01:47]} 45. Rc6+ {[%emt 0:00:26]} f6 {[%emt 0:00:26]} 46. Rc2 {[%emt 0:00:01]} Ra3 {[%emt 0:02:44]} 47. Rg2+ {[%emt 0:00:23]} Kh5 {[%emt 0:00:20]} 48. Rg8 {[%emt 0:02:40]} Ra1 {[%emt 0:01:29]} 49. Kf3 {[%emt 0:00:16]} Rf1+ {[%emt 0:00:30]} 50. Kg2 {[%emt 0:00:11]} Rf5 {[%emt 0:00:09]} 51. Ra8 {[%emt 0:00:06]} Rg5+ {[%emt 0:00:50]} 52. Kf2 {[%emt 0:00:54]} Kh4 {[%emt 0:00:23]} 53. Ra6 {[%emt 0:02:07]} Rg6 {[%emt 0:01:08]} 54. Ra3 {[%emt 0:00:20]} f5 {[%emt 0:01:01][%cal Bf6f5,Bf5f4][%mdl 32]} 55. Rf3 {[%emt 0:00:54] The position is equal.} Rf6 {[%emt 0:00:24]} 56. Kg2 {[%emt 0:01:10]} f4 {[%emt 0:00:17]} 57. Ra3 {[%emt 0:00:47]} Kg4 {[%emt 0:00:30]} 58. h3+ {[%emt 0:02:55]} Kh4 {[%emt 0:00:45]} 59. Ra4 {[%emt 0:02:47]} h5 {[%emt 0:02:05]} 60. Kf3 {[%emt 0:01:30]} Kxh3 {[%emt 0:01:15]} 61. Rxf4 {[%emt 0:00:21]} Ra6 {[%emt 0:00:57]} 62. Kf2 {[%emt 0:00:17]} Ra2+ {[%emt 0:00:45]} 63. Kg1 {[%emt 0:00:54] White happily takes the draw.   Weighted Error Value: White=0.15 (very precise) /Black=0.12 (very precise)} 1/2-1/2

[Event "71st Greek Championship 2022"]
[Site "Athens"]
[Date "2022.12.10"]
[Round "8.3"]
[White "Mitsis, Georgios"]
[Black "Alexiadis, Hristos"]
[Result "1/2-1/2"]
[ECO "E05"]
[WhiteElo "2365"]
[BlackElo "2342"]
[Annotator "TA"]
[PlyCount "60"]
[EventDate "2022.12.04"]
[EventType "tourn"]
[EventCountry "GRE"]
[SourceTitle "playchess.com"]
[Source "ChessBase"]
[SourceQuality "1"]
[TimeControl "40/5400+30:1800+30"]

{[%evp 18,60,23,21,8,-16,17,10,18,27,23,23,23,23,23,23,30,24,21,16,23,12,19,0,0,0,0,0,3,0,0,0,14,13,10,10,15,21,21,4,21,0,0,0,0]} 1. d4 {[%emt 0:08:25]} Nf6 {[%emt 0:05:31]} 2. Nf3 {[%emt 0:00:00]} e6 {[%emt 0:00:07]} 3. c4 {[%emt 0:00:25]} d5 {[%emt 0:00:23]} 4. g3 {[%emt 0:00:34]} Be7 {[%emt 0:00:39]} 5. Bg2 {[%emt 0:00:00]} O-O {[%emt 0:00:08]} 6. O-O {[%emt 0:00:00]} dxc4 {[%emt 0:00:08]} 7. Qc2 {[%emt 0:00:00]} a6 {[%emt 0:00:50]} 8. a4 {[%emt 0:00:00]} Bd7 {[%emt 0:02:05]} 9. Qxc4 {[%emt 0:03:04]} Bc6 {[%emt 0:00:08]} 10. Bf4 {[%emt 0:02:07]} Bd6 {[%emt 0:00:15] E05: Open Catalan: 5 Nf3 Be7.} 11. Nc3 {[%emt 0:07:51]} a5 {[%emt 0:07:06]} 12. Bg5 {[%emt 0:15:03][%cal Oe2e4]} Bb4 {[%emt 0:08:53] [#]} 13. Rfd1 $146 {[%emt 0:07:39]} ({Predecessor:} 13. Rfe1 h6 14. Bxf6 Qxf6 15. e4 Nd7 16. Qe2 Nb6 17. Ne5 Be8 18. Red1 c5 19. Ng4 {0-1 (42) Cheparinov,I (2673)-Tunik,G (2429) Golden Sands 2012}) 13... h6 {[%emt 0:02:54]} 14. Bxf6 {[%emt 0:02:38]} Qxf6 {[%emt 0:00:05]} 15. Ne5 {[%emt 0:00:13]} Bxg2 $1 {[%emt 0:00:34]} 16. Kxg2 {[%emt 0:00:07]} Qe7 {[%emt 0:02:39]} 17. Rac1 {[%emt 0:01:47]} c6 {[%emt 0:10:44]} 18. Ne4 {[%emt 0:02:21]} Rd8 {[%emt 0:03:55]} 19. Nd3 {[%emt 0:08:48]} Na6 {[%emt 0:00:17] The position is equal.} 20. Nec5 {[%emt 0:03:53]} Bxc5 {[%emt 0:03:40]} 21. Nxc5 {[%emt 0:00:19]} Nxc5 {[%emt 0:10:17]} 22. Qxc5 {[%emt 0:03:17]} Kf8 {[%emt 0:06:15]} 23. Rd3 {[%emt 0:01:40]} Qxc5 {[%emt 0:08:17]} 24. Rxc5 $11 {[%emt 0:00:12][%mdl 4096] Endgame KRR-KRR} Ke7 {[%emt 0:00:20]} 25. Rb3 {[%emt 0:01:25]} Ra7 {[%emt 0:00:20]} 26. e3 {[%emt 0:00:40]} Kd6 {[%emt 0:04:06]} 27. Kf3 {[%emt 0:00:16]} Kc7 {[%emt 0:00:06]} 28. Rc4 {[%emt 0:04:04]} Raa8 {[%emt 0:01:34]} 29. Rbc3 {[%emt 0:00:00]} Rd7 {[%emt 0:00:21]} 30. Rb3 {[%emt 0:01:48]} Rad8 {[%emt 0:00:56] An even fight not without its subleties.   Weighted Error Value: White=0.06 (flawless) /Black=0.04 (flawless)} 1/2-1/2

[Event "71st Greek Championship 2022"]
[Site "Athens"]
[Date "2022.12.10"]
[Round "8.4"]
[White "Trimitzios, Petros"]
[Black "Koutlas, Nikolaos"]
[Result "0-1"]
[ECO "A07"]
[WhiteElo "2358"]
[BlackElo "2267"]
[Annotator "TA"]
[PlyCount "118"]
[EventDate "2022.12.04"]
[EventType "tourn"]
[EventCountry "GRE"]
[SourceTitle "playchess.com"]
[Source "ChessBase"]
[SourceQuality "1"]
[TimeControl "40/5400+30:1800+30"]

{[%evp 10,118,17,22,15,0,0,-4,15,3,10,11,0,-21,10,0,7,9,8,0,0,0,0,0,0,0,0,0,0,-120,-133,-126,-140,-218,-214,-204,-216,-299,-198,-257,-237,-222,-127,-165,-168,-164,-150,-163,-114,-177,-163,-201,-214,-208,-209,-245,-245,-227,-174,-245,-238,-238,-171,-276,-258,-313,-307,-311,-264,-252,-207,-181,-112,-264,-252,-440,-428,-585,-583,-583,-580,-561,-559,-533,-533,-597,-595,-1372,-1347,-29968,-29969,-29969,-29970,-29963,-29967,-29975,-29976,-29978,-29979,-29979,-29980,-29980,-29981,-29981,-29982,-29984,-29985,-29985,-29986,-29986,-29987]} 1. Nf3 {[%emt 0:00:06]} d5 {[%emt 0:00:05]} 2. b3 {[%emt 0:00:54]} Bf5 {[%emt 0:04:46]} 3. Bb2 {[%emt 0:00:07]} e6 {[%emt 0:00:18]} 4. g3 {[%emt 0:00:06]} Nf6 {[%emt 0:00:38]} 5. Bg2 {[%emt 0:00:16]} h6 {[%emt 0:01:53]} 6. O-O {[%emt 0:00:07]} Be7 {[%emt 0:00:56] A07: Réti Opening: New York and Capablanca Systems.} 7. c4 {[%emt 0:01:31]} O-O $1 {[%emt 0:00:36] [#] The main line 7...0-0 scores better than 7...c6.} 8. Re1 $146 {[%emt 0:01:12]} ({Predecessor:} 8. d3 Bh7 9. Nbd2 a5 10. a3 c6 11. Ra2 Nbd7 12. Qa1 b5 13. Rc1 Qb6 14. cxb5 cxb5 15. Bd4 Qb7 16. Rac2 Rfc8 17. a4 bxa4 18. bxa4 Rxc2 19. Rxc2 Rc8 {0-1 (39) Moussard,J (2672)-Caruana,F (2783) Chess.com INT 2022}) 8... a5 {[%emt 0:08:01][%cal Oa5a4] The position is equal.} 9. Nc3 {[%emt 0:03:28]} c6 {[%emt 0:00:43]} 10. d3 {[%emt 0:02:25]} Bh7 {[%emt 0:10:53]} 11. e4 {[%emt 0:05:55]} Na6 {[%emt 0:01:05][%cal Bb8a6,Ba6b4,Bb4d3][%mdl 32]} (11... d4 $5 {[%cal Rd4c3]} 12. Na4 b5 $11) 12. cxd5 {[%emt 0:02:33]} cxd5 {[%emt 0:00:23]} 13. exd5 {[%emt 0:01:38]} Nb4 {[%emt 0:09:49]} 14. dxe6 {[%emt 0:04:19]} (14. Ne5 {simplifies} Nbxd5 15. Nxd5 Nxd5 16. Rc1) 14... Nxd3 {[%emt 0:02:13]} 15. exf7+ {[%emt 0:00:20]} Rxf7 {[%emt 0:00:21]} 16. Ne5 $1 {[%emt 0:11:33]} Nxb2 {[%emt 0:08:20]} 17. Qe2 {[%emt 0:00:19]} Nd3 {[%emt 0:00:42]} 18. Nxf7 {[%emt 0:01:17]} Kxf7 {[%emt 0:01:11]} 19. Red1 {[%emt 0:10:32]} (19. Bxb7 $2 Ra7 20. Qf3 (20. Bh1 $2 Bb4 $19) 20... Nxe1 21. Rxe1 Bb4 $19) (19. Rad1 $1 $11 Bb4 20. Be4 Bxe4 21. Nxe4 Bxe1 22. Rxd3 Bxf2+ 23. Kxf2 Qb6+ 24. Kg2) 19... Qd4 $1 $17 {[%emt 0:04:23]} (19... Rc8 20. Ne4 Qd4 21. Qxd3 $11) 20. Nb5 {[%emt 0:02:42]} Qd7 {[%emt 0:00:53] Black is more active.} 21. a4 {[%emt 0:02:32]} (21. Nc3 $17) 21... Rd8 $19 {[%emt 0:04:42]} 22. Ra2 {[%emt 0:01:38][%cal Ba1a2,Ba2c2,Bc2c7][%mdl 32]} Kf8 {[%emt 0:01:05][%cal Od3f4]} 23. Bf3 {[%emt 0:06:42]} Qf5 {[%emt 0:04:34]} 24. g4 {[%emt 0:12:16]} (24. Rc2 $142) 24... Qd7 {[%emt 0:10:23]} 25. Rc2 {[%emt 0:04:00] [#]} Bb4 {[%emt 0:00:24]} (25... Nf4 $1 $19 {[%cal Rf4e2]} 26. Qe1 N6d5) 26. Rc7 {[%emt 0:03:28] [#]} Nf4 $1 {[%emt 0:00:21]} 27. Qf1 {[%emt 0:00:02] [#]} Qxd1 {[%emt 0:00:15] The board is on fire.} 28. Qxd1 {[%emt 0:02:11]} (28. Bxd1 $2 Bd3 $19) 28... Rxd1+ {[%emt 0:00:08]} 29. Bxd1 {[%emt 0:00:01] [#]} Be4 $1 {[%emt 0:00:52]} 30. h4 {[%emt 0:05:39]} Ne6 {[%emt 0:05:17] Inhibits Nd4.} 31. Rc8+ {[%emt 0:02:00]} Ke7 {[%emt 0:00:08]} 32. Kh2 {[%emt 0:02:06]} Kd7 {[%emt 0:01:56]} 33. Ra8 {[%emt 0:02:24]} Bd2 {[%emt 0:01:26]} 34. f3 {[%emt 0:00:49]} (34. Kg1 {keeps fighting.}) 34... Bd5 {[%emt 0:01:11]} 35. Na3 {[%emt 0:00:58]} Nd8 {[%emt 0:02:59]} 36. Nb5 {[%emt 0:02:53]} (36. Nc4 $142 Bxc4 37. bxc4) 36... Bf4+ {[%emt 0:02:31]} 37. Kh3 {[%emt 0:02:06]} b6 {[%emt 0:02:12]} 38. Ra6 {[%emt 0:01:20]} Bc7 {[%emt 0:00:31] A strong pair of Bishops.} 39. g5 {[%emt 0:00:14]} hxg5 {[%emt 0:01:06]} 40. hxg5 {[%emt 0:00:00]} Ng8 {[%emt 0:00:00]} (40... Ne8 $19 {Hoping for ...Nd6.} 41. f4 Nd6) 41. Bc2 $2 {[%emt 0:03:53] White does not recover from this.} (41. f4 $17 {is the only way for White.} Bxf4 42. Rxb6) 41... Ne7 {[%emt 0:11:08]} ({Much less strong is} 41... Bxf3 42. Ra7 Nb7 43. Bf5+ Kd8 44. Ra8+ Ke7 45. Bg4 $18 (45. Rxg8 Be5 $16)) 42. Ra7 $2 {[%emt 0:01:50] [#]} (42. Kg4 {was necessary.}) 42... Ne6 $1 {[%emt 0:05:17]} 43. Be4 {[%emt 0:11:04]} Bxe4 {[%emt 0:03:17]} 44. fxe4 {[%emt 0:03:23]} Nc8 {[%emt 0:00:55]} ({Inferior is} 44... Nxg5+ 45. Kg4 Ne6 46. Nxc7 Nxc7 47. Rb7 $19) 45. Ra8 {[%emt 0:01:07]} Nxg5+ {[%emt 0:00:30]} 46. Kg4 {[%emt 0:00:07]} Nxe4 {[%emt 0:00:07]} 47. b4 {[%emt 0:01:05]} axb4 {[%emt 0:02:08] aiming for ...b3.} 48. a5 {[%emt 0:00:13]} bxa5 {[%emt 0:00:15] White must now prevent ...b3.} 49. Nxc7 {[%emt 0:00:08]} Kxc7 {[%emt 0:00:04] Black mates.} 50. Rxa5 {[%emt 0:00:03]} Kb6 {[%emt 0:00:20]} 51. Ra8 {[%emt 0:02:10]} Ncd6 {[%emt 0:00:07]} 52. Kf4 {[%emt 0:00:36]} Kc5 {[%emt 0:00:15]} 53. Ke5 {[%emt 0:01:20]} b3 {[%emt 0:01:30]} 54. Rb8 {[%emt 0:01:11]} Kc4 {[%emt 0:00:55]} 55. Rb6 {[%emt 0:00:45]} Kc3 {[%emt 0:02:04]} 56. Kf4 {[%emt 0:03:20]} b2 {[%emt 0:00:30]} 57. Rb8 {[%emt 0:02:24]} Kc2 {[%emt 0:00:08]} 58. Kg4 {[%emt 0:00:55]} b1=Q {[%emt 0:00:07]} 59. Rxb1 {[%emt 0:00:02]} Kxb1 {[%emt 0:00:12] Weighted Error Value: White=0.52/Black=0.13 (very precise)} 0-1